Cogmind - Beta 13 @@@ ROGUE MODE // 2024.03.25 @ 09:20:39 Player: Dosh Result: Destroyed by 8X-RFM(R) with Subdweller Machine Gun Performance ------------- Evolutions (0) 0 Regions Visited (2) 400 Robots Destroyed (27) 135 Value Destroyed (621) 621 Prototype IDs (2) 40 Alien Tech Used (0) 0 Bonus (0) 0 TOTAL SCORE: 1196 Bonus ------- None Cogmind --------- Core Integrity 0/250 Matter 251/300 Energy 200/200 System Corruption 0% Temperature Cool (0) Movement Treading (240) Ox1 Location -10/Subcaves Parts ------- > --- POWER (1) -------- Subdweller Power Source > --- PROPULSION (2) --- Light Treads > --- UTILITY (2) ------ Large Storage Unit > --- WEAPON (2) ------- Assault Rifle Assault Rifle > --- INVENTORY (15) --- Light Treads Light Treads Light Treads Light Treads Transport Network Coupler Gun Armor Hacking Suite Light Cannon Light Cannon Grenade Launcher Dirty Datajack (20) Dirty Datajack (20) Datajack Peak State ------------ > --- POWER ------------ Light Ion Engine > --- PROPULSION ------- Light Treads Light Treads > --- UTILITY ---------- Large Storage Unit Subdweller Optics > --- WEAPON ----------- Assault Rifle Assault Rifle > --- INVENTORY -------- Light Treads Light Treads Light Treads Light Treads Transport Network Coupler Gun Armor Hacking Suite Assault Rifle Light Cannon Light Cannon Grenade Launcher Dirty Datajack Dirty Datajack Datajack [Rating: 11] Favorites ----------- Power Light Ion Engine Engine Light Ion Engine Propulsion Light Treads Treads Light Treads Utility Large Storage Unit Device Subdweller Optics Storage Large Storage Unit Weapon Assault Rifle Ballistic Gun Assault Rifle Ballistic Cannon Light Cannon Launcher Grenade Launcher Build | -11 -10 -10 ------- Run | Yrd Mat Sub Slots Evolved . | . . . Power . | . . . Propulsion . | . . . Utility . | . . . Weapon . | . . . Parts Attached 22 | 6 12 4 Power 4 | 1 2 1 Engine 4 | 1 2 1 Core . | . . . Reactor . | . . . Propulsion 6 | 2 4 . Treads 6 | 2 4 . Leg . | . . . Wheel . | . . . Hover . | . . . Flight . | . . . Utility 4 | 1 1 2 Device 2 | . . 2 Storage 2 | 1 1 . Processor . | . . . Hackware . | . . . Protection . | . . . Artifact . | . . . Weapon 8 | 2 5 1 Energy Gun . | . . . Energy Cannon . | . . . Ballistic Gun 5 | 2 2 1 Ballistic Cannon 2 | . 2 . Launcher 1 | . 1 . Special Weapon . | . . . Impact Weapon . | . . . Slashing Weapon . | . . . Piercing Weapon . | . . . Special Melee Weapon . | . . . Unidentified Prototypes . | . . . Parts Lost 6 | . 2 4 Power 3 | . 2 1 Propulsion 1 | . . 1 Utility 1 | . . 1 Weapon 1 | . . 1 Highest Loss Streak 2 | . 1 2 To Critical Strikes . | . . . Average Slot Usage (%) 85 | . 82 93 Engine 10 | . 10 11 Treads 27 | . 28 27 Device 2 | . . 10 Storage 14 | . 14 14 Ballistic Gun 20 | . 18 28 Ballistic Cannon 6 | . 8 . Naked Turns . | . . . Heaviest Build 34 | 10 34 29 Greatest Support 40 | 40 40 40 Greatest Overweight (x) . | . . . Average Overweight (x) . | . . . Largest Inventory Capacity 15 | 8 15 15 Average Capacity 13 | 6 12 15 Most Carried 15 | 2 14 15 Average Carried 9 | 1 8 12 Final Capacity 15 | 8 15 15 Final Carried 13 | 2 12 13 Class Distribution -------------------- 100% | Mutant Dominant Class ---------------- Mutant | -10/Materials Mutant | -10/Subcaves Resources | -11 -10 -10 ----------- Run | Yrd Mat Sub Matter Collected 864 | 193 554 117 Remotely . | . . . Salvage Created 773 | . 535 238 Parts 58 | . 45 13 Haulers Intercepted 2 | . 2 . Recyclers Shooed . | . . . Parts Field Recycled . | . . . Retrieved Matter . | . . . Parts Self-Destructed . | . . . Prevented . | . . . Kills | -11 -10 -10 ------- Run | Yrd Mat Sub Combat Hostiles Destroyed 15 | . 10 5 Guns 9 | . 4 5 Cannons 3 | . 3 . AOE 3 | . 3 . Classes Destroyed 10 | . 9 1 Worker 1 | . 1 . Builder 3 | . 3 . Tunneler 1 | . 1 . Hauler 2 | . 2 . Recycler 1 | . 1 . Operator 2 | . 2 . Watcher 2 | . 2 . Swarmer 3 | . 3 . Grunt 7 | . 7 . Subdweller 5 | . . 5 Best Kill Streak 3 | . 3 3 Combat Bots Only 3 | . 3 3 Max Kills in Single Turn 1 | . 1 1 Gunslinging . | . . . Exploded 1 | . 1 . Melee . | . . . Uniques/NPCs Destroyed . | . . . Combat | -11 -10 -10 -------- Run | Yrd Mat Sub Hostile Shots Fired 94 | . 40 54 Missed 25 | . 8 17 Damage Taken 1191 | . 416 775 Core 253 | . 46 207 Absorbed by Shields . | . . . Core Remaining (%) 100 | 100 . . Volleys Fired 101 | . 77 24 Largest 2 | . 2 2 Hottest 55 | . 55 40 Shots Fired 200 | . 153 47 Gun 143 | . 96 47 Cannon 52 | . 52 . Launcher 5 | . 5 . Special . | . . . Kinetic 195 | . 148 47 Thermal . | . . . Explosive 5 | . 5 . Electromagnetic . | . . . Robot Hit Streak 31 | . 10 31 Robot Miss Streak 9 | . 9 1 Penetration Max . | . . . Secondary Targets 1 | . . 1 Max Gunslinging Chain 1 | . . 1 Shots Hit Robots 122 | . 79 43 Core Hits 53 | . 38 15 Critical Kills . | . . . Critical Parts Destroyed . | . . . Critical Strikes 3 | . 2 1 Destroy 1 | . . 1 Blast 2 | . 2 . Melee Attacks . | . . . Impact . | . . . Slashing . | . . . Piercing . | . . . Sneak Attacks . | . . . Combat Hostiles . | . . . Follow-up Attacks . | . . . Damage Inflicted 1796 | . 1252 544 Guns 1017 | . 473 544 Cannons 507 | . 507 . Explosions 235 | . 235 . Melee . | . . . Ramming 37 | . 37 . Kinetic 1524 | . 980 544 Thermal . | . . . Explosive 235 | . 235 . Electromagnetic . | . . . Impact . | . . . Slashing . | . . . Piercing . | . . . Highest Corruption . | . . . Average Corruption . | . . . Corruption Purged . | . . . Corruption Blocked . | . . . Overload Shots . | . . . Overflow Damage 13 | . 13 . Projectiles 3 | . 3 . Explosions 10 | . 10 . Melee . | . . . Knockbacks 10 | . 10 . Impact 1 | . 1 . Kinetic 9 | . 9 . Secondary . | . . . Self-Inflicted Damage . | . . . Shots . | . . . Rammed 5 | . 5 . Targets Rammed 6 | . 6 . Kicked . | . . . Crushed 1 | . 1 . Highest Temperature 46 | . 46 . Average Temperature 13 | . 13 . Received Heat Transfer 297 | . 189 108 Siege Activations . | . . . Robots Corrupted . | . . . Combat Hostiles . | . . . Parts Fried . | . . . Impact Corruptions . | . . . Robots Melted . | . . . Combat Hostiles . | . . . Parts Melted . | . . . Heat Transferred . | . . . Parts Sabotaged . | . . . Parts Stolen . | . . . Parts Stripped . | . . . Power Chain Reactions . | . . . Alert | -11 -10 -10 ------- Run | Yrd Mat Sub Peak Influence 155 | . 155 . Initial . | . . . Average 45 | . 47 . Maximum Alert Level . | . . . Low Security (%) 100 | 100 100 . Level 1 . | . . . Level 2 . | . . . Level 3 . | . . . Level 4 . | . . . Level 5 . | . . . High Security . | . . . Max Security . | . . . Squads Dispatched 2 | . 2 . Investigation 1 | . 1 . Extermination . | . . . Reinforcement 1 | . 1 . Assault . | . . . Garrison . | . . . Intercept . | . . . Searches Triggered . | . . . Construction Impeded . | . . . Haulers Reinforced . | . . . Active Scanning Responses . | . . . Cargo Convoy Interrupts . | . . . Stealth | -11 -10 -10 --------- Run | Yrd Mat Sub Distress Signals 1 | . 1 . Communications Jammed . | . . . Distress Signals . | . . . Times Spotted 35 | . 26 9 Peak Tracking Total 4 | . 4 3 Tactical Retreats 2 | . 2 . Traps | -11 -10 -10 ------- Run | Yrd Mat Sub Traps Triggered 1 | . 1 . Indirectly . | . . . Trap Hack Attempts . | . . . Triggered . | . . . Disarmed . | . . . Reprogrammed . | . . . Reused . | . . . Traps Extracted . | . . . Installed . | . . . Triggered . | . . . Machines | -11 -10 -10 ---------- Run | Yrd Mat Sub Machines Disabled 3 | . 3 . Max in Single Turn 1 | . 1 . Machines Repaired . | . . . Machines Dismantled . | . . . Machines Sabotaged . | . . . Overloaded Fab Kills . | . . . Hacking | -11 -10 -10 --------- Run | Yrd Mat Sub Machines Accessed 10 | . 9 1 Terminals 7 | . 7 . Fabricators . | . . . Repair Stations . | . . . Recycling Units 2 | . 2 . Scanalyzers . | . . . Garrison Access . | . . . Total Hacks 28 | . 27 1 Successful 8 | . 7 1 Failed 19 | . 19 . Catastrophic 4 | . 4 . Database Lockouts 1 | . 1 . Manual 16 | . 16 . Terminals 21 | . 21 . Fabricators . | . . . Repair Stations . | . . . Recycling Units 6 | . 6 . Scanalyzers . | . . . Garrison Access . | . . . Terminal Hacks 6 | . 5 1 Record 1 | . . 1 Robot Analysis 1 | . 1 . Prototype ID Bank 1 | . 1 . Alert Level 1 | . 1 . Recall Investigation 1 | . 1 . Recall Reinforcements 1 | . 1 . Fabricator Hacks . | . . . Repair Station Hacks . | . . . Recycling Unit Hacks . | . . . Scanalyzer . | . . . Garrison Access Hacks . | . . . Unauthorized Hacks 2 | . 2 . Terminals 1 | . 1 . Operators 1 | . 1 . Fabricators . | . . . Repair Stations . | . . . Recycling Units 1 | . 1 . Tunnel 1 | . 1 . Scanalyzers . | . . . Garrison Access . | . . . Data Cores Recovered . | . . . Used . | . . . Hacking Detections 7 | . 7 . Full Trace Events 3 | . 3 . Feedback Events . | . . . Feedback Blocked . | . . . Robot Schematics Acquired . | . . . Robots Built . | . . . Authchips . | . . . Time . | . . . Total Robot Build Rating . | . . . Part Schematics Acquired . | . . . Parts Built . | . . . Authchips . | . . . Time . | . . . Total Part Build Rating . | . . . Parts Repaired . | . . . Time . | . . . Parts Recycled . | . . . Recycled Matter . | . . . Retrieved Matter . | . . . Retrieved Components . | . . . Parts Scanalyzed . | . . . Part Schematics Acquired . | . . . Parts Damaged . | . . . Bothacking | -11 -10 -10 ------------ Run | Yrd Mat Sub Used RIF Installer . | . . . Robots Hacked . | . . . Non-combat . | . . . Combat . | . . . Robot Hacks Applied . | . . . Relay Couplers Released . | . . . Fabnet Peak Effective % . | . . . Robots Rewired . | . . . Allies Hacked . | . . . Hacks Repelled . | . . . Allies | -11 -10 -10 -------- Run | Yrd Mat Sub Total Allies . | . . . Largest Group . | . . . Highest-Rated Group . | . . . Highest-Rated Ally . | . . . Total Orders . | . . . Ally Attacks . | . . . Total Damage . | . . . Kills . | . . . Allies Corrupted . | . . . Allies Melted . | . . . Intel | -11 -10 -10 ------- Run | Yrd Mat Sub Robot Analysis Total 1 | . 1 . Derelict Logs Recovered . | . . . Drone Launches . | . . . Drone Recoveries . | . . . Exploration | -11 -10 -10 ------------- Run | Yrd Mat Sub Turns Passed 2925 | 73 2131 721 Spaces Moved 1500 | 41 1088 371 Core 2 | 2 . . Treads 1498 | 39 1088 371 Legs . | . . . Wheels . | . . . Hover . | . . . Flight . | . . . Fastest Speed 50 | 50 160 160 Average Speed 159 | 154 160 160 Slowest Speed 160 | 160 160 160 Overloaded Moves . | . . . Propulsion Burnouts . | . . . Robots Hopped . | . . . Cave-ins Triggered . | . . . Exploration Rate (%) 44 | 3 99 32 Regions Visited 2 Branch Regions 1 Pre-discovered Areas 1 | . 1 . Known Exits Taken . | . . . Unknown Exits Taken 2 | 1 1 . Scrap Searched 1 | . . 1 Spaces Dug 7 | . 7 . Terrain Destroyed 28 | . 28 . Melee . | . . . Projectile . | . . . AOE 28 | . 28 . Terrain Rammed . | . . . Walls Destroyed . | . . . Machines Disabled . | . . . Actions | -11 -10 -10 --------- Run | Yrd Mat Sub Total 1840 | 48 1340 452 Wait 174 | . 126 48 Move 1498 | 40 1087 371 Hop . | . . . Pick Up 23 | 2 18 3 Fast Attach 10 | 6 2 2 Attach 3 | . 1 2 Detach 2 | . 1 1 Swap 9 | . 9 . Drop 14 | . 13 1 Fire 101 | . 77 24 Melee . | . . . Ram . | . . . Kick . | . . . Crush 6 | . 6 . Escape Stasis . | . . . Rewire . | . . . Trap . | . . . Miscellaneous . | . . . Route ------- -11/Scrapyard -10/Materials (discovered 5 exits: [*Mat x3] / [*Min] / *Sub) -10/Subcaves History --------- Turn | Location | Event 35 | -11/Scrapyard | Discovered new exit (range 16) 74 | -11/Scrapyard | Entered Materials 303 | -10/Materials | Build established: Mutant 376 | -10/Materials | Discovered new exit (range 8) 910 | -10/Materials | Discovered new exit (range 8) 976 | -10/Materials | Central database locked down 1033 | -10/Materials | Discovered new exit (range 16) 1301 | -10/Materials | Discovered new exit (range 6) 1974 | -10/Materials | Discovered new exit (range 5) 2205 | -10/Materials | Entered Subcaves 2620 | -10/Subcaves | A Subdweller sparked back to life 2620 | -10/Subcaves | A Subdweller sparked back to life 2620 | -10/Subcaves | A Subdweller sparked back to life 2622 | -10/Subcaves | Core integrity fell below 50% 2652 | -10/Subcaves | Found Prototype Protection 2681 | -10/Subcaves | Visited Clippyterm 2719 | -10/Subcaves | Ambushed by Subdwellers from Twisted Machinery 2898 | -10/Subcaves | Ambushed by Subdwellers from Twisted Machinery 2916 | -10/Subcaves | Core integrity fell below 20% 2926 | -10/Subcaves | Destroyed by 8X-RFM(R) with Subdweller Machine Gun Last Messages --------------- 02681_ The door opens automatically. 02685_ Connecting with Clippyterm... 02685_ Current location identified: Subcaves >>Record "Clippyterm" Welcome to Clippyterm v0.53, my misguided attempt to resurrect an ancient AI. I give up. There must be something fundamentally wrong with the algorithm, because no matter how much data I collect to feed it, half the time it still manages to suggest unhelpful sample queries and responses. --DD-NU8 02719_ P4-DUQ(R) emerges from the Twisted Machinery. 02719_ Lgt. Ion Engine destroyed. 02743_ P4-DUQ(R) destroyed. 02772_ Acquired 12 matter. 02781_ Sub. Optics shoots sparks and powers down. 02785_ Dropped Broken Sub. Optics. 02845_ Acquired Sub. Power Source. 02898_ G1-61X(R) emerges from the Twisted Machinery. 02912_ Assault Rifle destroyed. 02912_ G1-61X(R) suffers critical hit (Destroy). 02917_ Lgt. Treads destroyed. Map ----- +----------------------------------------------------+ | ???????????# #?????????????????????????????????? | | #??????????## ##?????????????????????????????????? | | ###????????##!%##????????????????????????????????? | | #???????## & ##???????????????????????????????? | | ##??#####% ###?????????????????????????????? | | #### #?????????????????????????????? | | % ! #?????????????????????????????? | | ##### ####??????????????????????????? | | ????##### """" ""####???????????????????????? | | ???????## " #???????????????????????? | | ??????## " #???????????????????????? | | ??????# " "# ## ##??????????????????????? | | ??????# """"""" ##### ###????????????????????? | | ??????########""###???# #????????????????????? | | ?????????????####?????# # #????????????????????? | | ??????????????????????### ##????????????????????? | | ????????????????????????# ##????????????????????? | | ????????????????????????## #????????????????????? | | ????????????????????????## ##????????????????????? | | ????????????????????????# #????????????????????? | | ????????????????????????## ##????????????????????? | | ????????????????????????# ##????????????????????? | | ????????????????????????# #????????????????????? | | ????????????????????????# ##????????????????????? | | ????????????????????????# #????????????????????? | | ????????????????????????#@ #????????????????????? | | ????????????????????????##RR#????????????????????? | | ?????????????????????????# ##????????????????????? | | ?????????????????????????# ?????????????????????? | | ?????????????????????????# #????????????????????? | | ?????????????????????????# #????????????????????? | | ?????????????????????????# # ????????????????????? | | ?????????????????????????? ? ????????????????????? | | ??????????????????????????"? ???????????????????? | | ?????????????????????????? ??#???????????????????? | | ?????????????????????????? ??????????????????????? | | ??????????????????????????#??????????????????????? | | ?????????????????????????????????????????????????? | | ?????????????????????????????????????????????????? | | ?????????????????????????????????????????????????? | | ?????????????????????????????????????????????????? | | ?????????????????????????????????????????????????? | | ?????????????????????????????????????????????????? | | ?????????????????????????????????????????????????? | | ?????????????????????????????????????????????????? | | ?????????????????????????????????????????????????? | | ?????????????????????????????????????????????????? | | ?????????????????????????????????????????????????? | | ?????????????????????????????????????????????????? | | ?????????????????????????????????????????????????? | +----------------------------------------------------+ Best States ------------- Heat Dissipation 25 Energy Generation 15 Energy Capacity 250 Matter Stores 300 Matter Capacity 300 Sight Range 21 Terrain Scan Range 16 Terrain Scan Density 10 Evasion (%) 40 Recoil Reduction 2 Item Schematics ----------------- None Robot Schematics ------------------ None Fabricated ------------ Nothing Alien Tech Used ----------------- None Achievements -------------- None Challenges ------------ None Game ------ Seed FortressHoverFacilitator Manual? 0 Play Time 00:11:43 Cumulative 302.8 hours Start 2024.03.25 @ 09:11:03 End 2024.03.25 @ 09:20:39 Sessions 1 Manual Loads 0 Difficulty Rogue Special Mode None Game No. 203 Rogue 203 Adventurer 0 Explorer 0 Win Type - Total 14 Types 9/1/1/1/1/0/0/1/0 Lore% 72 Gallery% 83 Achievement% 72 Wizard Run 0 Options --------- Layout 0 ASCII 0 Keyboard 1 Movement Numpad Keybinds 0 Fullscreen 2 Font 18/SmallcapsGlow Map View 76x50 Zoom Use 0% Tactical HUD 1 Map Filters NONE Filters NONE Steam 1 RUN: 1abf1175-ceef-49c6-9525-f9cee7f3c688